Cogmind - Beta 17 @@@ ROGUE MODE // 2026.06.26 @ 16:28:26 Player: Dull Result: Destroyed by Autobeam Turret with Autobeam Performance ------------- Evolutions (0) 0 Regions Visited (2) 400 Robots Destroyed (30) 150 Value Destroyed (755) 755 Prototype IDs (0) 0 Alien Tech Used (0) 0 Bonus (0) 0 TOTAL SCORE: 1305 Bonus ------- None Cogmind --------- Core Integrity 0/250 Matter 257/300 Energy 106/250 System Corruption 0% Temperature Cool (12) Movement Treading (320) Ox2 Location -10/Subcaves Parts ------- > --- POWER (1) -------- Ion Engine > --- PROPULSION (2) --- Light Treads Light Treads > --- UTILITY (2) ------ Huge Storage Unit Makeshift Light Armor Plating > --- WEAPON (2) ------- Battle Cannon Battle Cannon > --- INVENTORY (25) --- Subdweller Power Source Subdweller Power Source Light Treads Light Treads Large Storage Unit Huge Storage Unit Medium Battery (150) Structural Scanner Sensor Array Light Armor Plating Makeshift Light Armor Plating Makeshift Light Armor Plating Grenade Launcher Grenade Launcher Mining Claw Peak State ------------ > --- POWER ------------ Ion Engine > --- PROPULSION ------- Light Treads Light Treads > --- UTILITY ---------- Huge Storage Unit Makeshift Light Armor Plating > --- WEAPON ----------- Battle Cannon Battle Cannon > --- INVENTORY -------- Ion Engine Subdweller Power Source Light Treads Light Treads Large Storage Unit Huge Storage Unit Medium Battery Structural Scanner Sensor Array Light Armor Plating Makeshift Light Armor Plating Battle Cannon Grenade Launcher Grenade Launcher Mining Claw [Rating: 14] Favorites ----------- Power Ion Engine Engine Ion Engine Propulsion Light Treads Treads Light Treads Leg Aluminum Leg Wheel Wheel Utility Huge Storage Unit Device Heat Sink Storage Huge Storage Unit Protection Makeshift Light Armor Plating Weapon Battle Cannon Energy Gun Medium Laser Ballistic Cannon Battle Cannon Build | -11 -10 -10 ------- Run | Yrd Mat Sub Slots Evolved . | . . . Power . | . . . Propulsion . | . . . Utility . | . . . Weapon . | . . . Parts Attached 20 | . 11 9 Power 3 | . 2 1 Engine 3 | . 2 1 Core . | . . . Reactor . | . . . Propulsion 6 | . 4 2 Treads 4 | . 2 2 Leg . | . . . Wheel 2 | . 2 . Hover . | . . . Flight . | . . . Utility 6 | . 3 3 Device 2 | . 1 1 Storage 2 | . 2 . Processor . | . . . Hackware . | . . . Protection 2 | . . 2 Artifact . | . . . Weapon 5 | . 2 3 Energy Gun 2 | . 2 . Energy Cannon . | . . . Ballistic Gun . | . . . Ballistic Cannon 3 | . . 3 Launcher . | . . . Special Weapon . | . . . Impact Weapon . | . . . Slashing Weapon . | . . . Piercing Weapon . | . . . Special Melee Weapon . | . . . Unidentified Prototypes . | . . . Parts Lost 9 | . 4 5 Power 3 | . 2 1 Propulsion 4 | . 2 2 Utility . | . . . Weapon 2 | . . 2 Highest Loss Streak 3 | . 3 1 To Critical Strikes 1 | . . 1 Average Backups 12 | . 9 14 Power 1 | . . 2 Propulsion 3 | . 4 2 Utility 5 | . 2 6 Weapon 2 | . 1 3 Tool/Special . | . . . Unused Backups 18 | . 6 12 Power 3 | . 1 2 Propulsion 4 | . 2 2 Utility 6 | . 1 5 Weapon 5 | . 2 3 Tool/Special . | . . . Average Slot Usage (%) 98 | . 96 99 Engine 13 | . 13 14 Treads 23 | . 15 27 Leg 1 | . 4 . Wheel 2 | . 8 . Device 7 | . 10 5 Storage 14 | . 15 14 Protection 5 | . . 8 Energy Gun 13 | . 27 6 Ballistic Cannon 14 | . . 21 Peak Build Rating 14 | . 8 14 Average Rating 10 | . 7 11 On Entrance 6 | 6 6 8 Avg Prop Armor Cover (%) . | . . . Naked Turns . | . . . Heaviest Build 95 | 12 94 95 Greatest Support 40 | 20 40 40 Greatest Overweight (x) 4 | . 4 4 Average Overweight (x) 2 | . 2 2 Largest Inventory Capacity 25 | . 25 25 Average Capacity 24 | . 22 25 Most Carried 18 | . 13 18 Average Carried 12 | . 9 14 Final Capacity 25 | 8 25 25 Final Carried 15 | 6 13 15 Class Distribution -------------------- 100% | Mutant Dominant Class ---------------- Mutant | -10/Materials Mutant | -10/Subcaves Resources | -11 -10 -10 ----------- Run | Yrd Mat Sub Matter Collected 692 | 178 147 367 Remotely . | . . . Salvage Created 769 | . 585 184 Parts 42 | . 27 15 Haulers Intercepted 1 | . 1 . Recyclers Shooed 1 | . 1 . Parts Field Recycled . | . . . Retrieved Matter . | . . . Parts Self-Destructed 12 | . . 12 Prevented . | . . . Parts Restored . | . . . Kills | -11 -10 -10 ------- Run | Yrd Mat Sub Combat Hostiles Destroyed 24 | . 15 9 Guns 14 | . 14 . Cannons 9 | . . 9 Classes Destroyed 9 | . 6 3 Worker 1 | . 1 . Hauler 1 | . 1 . Operator 1 | . 1 . Turret 1 | . . 1 Watcher 2 | . 2 . Swarmer 9 | . 6 3 Grunt 9 | . 9 . Sentry 1 | . . 1 Subdweller 5 | . . 5 Best Kill Streak 3 | . 3 3 Combat Bots Only 3 | . 3 3 Max Kills in Single Turn 2 | . 2 1 Gunslinging 1 | . 1 . Exploded . | . . . Melee . | . . . Uniques/NPCs Destroyed . | . . . Combat | -11 -10 -10 -------- Run | Yrd Mat Sub Hostile Shots Fired 192 | . 114 78 Missed 53 | . 31 22 Hits 139 | . 83 56 Projectile 139 | . 83 56 Critical Strikes 1 | . . 1 Damage Taken 1627 | . 910 717 Core 252 | . 181 71 Absorbed by Shields . | . . . Regen/Repaired (Parts) 67 | . 67 . Core Remaining (%) 100 | 100 . . Volleys Fired 104 | . 62 42 Largest 2 | . 2 2 Hottest 100 | . 100 100 Shots Fired 205 | . 122 83 Gun 137 | . 122 15 Cannon 68 | . . 68 Launcher . | . . . Special . | . . . Kinetic 68 | . . 68 Thermal 129 | . 114 15 Explosive . | . . . Electromagnetic 8 | . 8 . Robot Hit Streak 10 | . 10 8 Robot Miss Streak 3 | . 3 3 Penetration Max . | . . . Secondary Targets 4 | . 4 . Max Gunslinging Chain 1 | . 1 . Shots Hit Robots 140 | . 89 51 Core Hits 44 | . 31 13 Critical Kills . | . . . Critical Parts Destroyed . | . . . Critical Strikes 15 | . 13 2 Burn 14 | . 13 1 Blast 1 | . . 1 Melee Attacks . | . . . Impact . | . . . Slashing . | . . . Piercing . | . . . Sneak Attacks . | . . . Combat Hostiles . | . . . Follow-up Attacks . | . . . Damage Inflicted 2255 | . 1263 992 Guns 1339 | . 1200 139 Cannons 853 | . . 853 Explosions 63 | . 63 . Melee . | . . . Ramming . | . . . Kinetic 853 | . . 853 Thermal 1310 | . 1171 139 Explosive . | . . . Electromagnetic 92 | . 92 . Impact . | . . . Slashing . | . . . Piercing . | . . . Highest Corruption . | . . . Average Corruption . | . . . Corruption Purged . | . . . Corruption Blocked . | . . . Overload Shots . | . . . Overflow Damage 15 | . . 15 Projectiles 15 | . . 15 Explosions . | . . . Melee . | . . . Knockbacks 13 | . . 13 Impact . | . . . Kinetic 13 | . . 13 Secondary . | . . . Self-Inflicted Damage 33 | . 33 . Shots 1 | . 1 . Rammed . | . . . Targets Rammed . | . . . Kicked . | . . . Crushed . | . . . Highest Temperature 407 | . 407 5 Average Temperature 100 | . 100 5 Received Heat Transfer 489 | . 366 123 Effects 6 | . 6 . Energy Bleed 2 | . 2 . Interference 3 | . 3 . Damage (minor) 1 | . 1 . Siege Activations . | . . . Martial Activations . | . . . Shielding Activations . | . . . Robots Disrupted . | . . . Combat Hostiles . | . . . Robots Corrupted . | . . . Combat Hostiles . | . . . Parts Fried . | . . . Impact Corruptions . | . . . Robots Melted 1 | . 1 . Combat Hostiles 1 | . 1 . Parts Melted 10 | . 10 . Heat Transferred 4799 | . 4318 481 Parts Sabotaged . | . . . Parts Stolen . | . . . Parts Stripped . | . . . Power Chain Reactions 1 | . 1 . Alert | -11 -10 -10 ------- Run | Yrd Mat Sub Maximum Alert Level . | . . . Low Security (%) 100 | . 100 . Level 1 . | . . . Level 2 . | . . . Level 3 . | . . . Level 4 . | . . . Level 5 . | . . . High Security . | . . . Max Security . | . . . Peak Influence 124 | . 124 . Initial . | . . . Average 34 | . 34 . Influence Increases 659 | . 469 190 Destroy 0b10 Robot/C 400 | . 300 100 Destroy 0b10 Robot/NC 25 | . 25 . Destroy Leader 56 | . 56 . Successful Hack 8 | . 8 . Disable Machine 30 | . 30 . Destroy Structure 5 | . 5 . Lose Combat Pursuer 135 | . 45 90 Influence Decreases 485 | . 469 16 Time Decay 435 | . 429 6 Lost Part 50 | . 40 10 Squads Dispatched 2 | . 2 . Investigation 2 | . 2 . Extermination . | . . . Reinforcement . | . . . Assault . | . . . Garrison . | . . . Intercept . | . . . Searches Triggered . | . . . Construction Impeded . | . . . Haulers Reinforced . | . . . Active Scanning Responses . | . . . Cargo Convoy Interrupts . | . . . Stealth | -11 -10 -10 --------- Run | Yrd Mat Sub Distress Signals 1 | . 1 . Communications Jammed . | . . . Distress Signals . | . . . Times Spotted 37 | . 23 14 Peak Tracking Total 6 | . 4 6 Tactical Retreats 4 | . 1 3 Traps | -11 -10 -10 ------- Run | Yrd Mat Sub Traps Triggered 1 | . 1 . Indirectly . | . . . Trap Hack Attempts . | . . . Triggered . | . . . Disarmed . | . . . Reprogrammed . | . . . Reused . | . . . Traps Extracted . | . . . Installed . | . . . Triggered . | . . . Machines | -11 -10 -10 ---------- Run | Yrd Mat Sub Machines Disabled 4 | . 3 1 Max in Single Turn 2 | . 2 1 Machines Repaired . | . . . Machines Dismantled . | . . . Machines Sabotaged . | . . . Overloaded Fab Kills . | . . . Hacking | -11 -10 -10 --------- Run | Yrd Mat Sub Machines Accessed 8 | . 6 2 Terminals 4 | . 4 . Fabricators . | . . . Repair Stations 1 | . 1 . Recycling Units 1 | . 1 . Scanalyzers . | . . . Garrison Access . | . . . Total Hacks 19 | . 16 3 Successful 14 | . 11 3 Failed 4 | . 4 . Catastrophic . | . . . Database Lockouts 1 | . 1 . Manual 11 | . 11 . Terminals 9 | . 9 . Fabricators . | . . . Repair Stations 5 | . 5 . Recycling Units 2 | . 2 . Scanalyzers . | . . . Garrison Access . | . . . Terminal Hacks 6 | . 3 3 Record 1 | . . 1 Robot Analysis 1 | . 1 . Open Door 1 | . . 1 Locate Traps 2 | . 2 . Release Object 1 | . . 1 Fabricator Hacks . | . . . Repair Station Hacks 5 | . 5 . Scan Component 3 | . 3 . Repair 2 | . 2 . Recycling Unit Hacks 1 | . 1 . Retrieve Components 1 | . 1 . Scanalyzer . | . . . Garrison Access Hacks . | . . . Unauthorized Hacks 2 | . 2 . Terminals 2 | . 2 . Botnet 2 | . 2 . Fabricators . | . . . Repair Stations . | . . . Recycling Units . | . . . Scanalyzers . | . . . Garrison Access . | . . . Data Cores Recovered 1 | . 1 . Used . | . . . Hacking Detections 4 | . 4 . Full Trace Events 1 | . 1 . Feedback Events . | . . . Feedback Blocked . | . . . Robot Schematics Acquired . | . . . Robots Built . | . . . Authchips . | . . . Time . | . . . Total Robot Build Rating . | . . . Part Schematics Acquired . | . . . Parts Built . | . . . Authchips . | . . . Time . | . . . Total Part Build Rating . | . . . Part Studies Acquired . | . . . Parts Repaired 2 | . 2 . Time 52 | . 52 . Parts Recycled . | . . . Recycled Matter . | . . . Retrieved Matter . | . . . Retrieved Components 10 | . 10 . Parts Scanalyzed . | . . . Part Schematics Acquired . | . . . Parts Damaged . | . . . Bothacking | -11 -10 -10 ------------ Run | Yrd Mat Sub Used RIF Installer . | . . . Robots Hacked . | . . . Non-combat . | . . . Combat . | . . . Robot Hacks Applied . | . . . Relay Couplers Released . | . . . Fabnet Peak Effective % . | . . . Robots Rewired . | . . . Allies Hacked . | . . . Hacks Repelled . | . . . Allies | -11 -10 -10 -------- Run | Yrd Mat Sub Total Allies . | . . . Largest Group . | . . . Highest-Rated Group . | . . . Highest-Rated Ally . | . . . Total Orders . | . . . Ally Attacks . | . . . Total Damage . | . . . Kills . | . . . Allies Corrupted . | . . . Allies Melted . | . . . Intel | -11 -10 -10 ------- Run | Yrd Mat Sub Active Infowar (turns) 14 | . . 14 Sensors 14 | . . 14 Robot Analysis Total 1 | . 1 . Derelict Logs Recovered 1 | . . 1 Drone Launches . | . . . Drone Recoveries . | . . . Exploration | -11 -10 -10 ------------- Run | Yrd Mat Sub Turns Passed 5847 | . 2023 3824 Spaces Moved 1925 | 1 778 1146 Core . | . . . Treads 1478 | . 332 1146 Legs 183 | 1 182 . Wheels 264 | . 264 . Hover . | . . . Flight . | . . . Fastest Speed 80 | 120 80 320 Average Speed 276 | 120 211 320 Slowest Speed 480 | 120 320 480 Overloaded Moves . | . . . Propulsion Burnouts . | . . . Robots Hopped . | . . . Potential Cave-ins . | . . . Cave-ins Triggered . | . . . Exploration Rate (%) 51 | 2 97 55 Regions Visited 2 Branch Regions 1 Pre-discovered Areas 1 | . . 1 Known Exits Taken . | . . . Unknown Exits Taken 2 | 1 1 . Scrap Searched . | . . . Spaces Dug . | . . . Terrain Destroyed 3 | . 2 1 Melee . | . . . Projectile 1 | . . 1 AOE 2 | . 2 . Terrain Rammed . | . . . Walls Destroyed . | . . . Machines Disabled . | . . . Actions | -11 -10 -10 --------- Run | Yrd Mat Sub Total 2247 | . 1033 1214 Wait 160 | . 156 4 Move 1923 | . 777 1146 Hop . | . . . Pick Up 29 | . 20 9 Fast Attach 2 | . 2 . Attach 16 | . 8 8 Detach 1 | . . 1 Swap 4 | . 3 1 Drop 7 | . 5 2 Fire 104 | . 62 42 Melee . | . . . Ram . | . . . Kick . | . . . Crush . | . . . Escape Stasis . | . . . Rewire . | . . . Trap . | . . . Miscellaneous 1 | . . 1 Route ------- -11/Scrapyard -10/Materials (discovered 6 exits: [*Mat x3] / [*Min x2] / *Sub) -10/Subcaves (discovered 3 exits: [*Mat x2] / [*Rec]) History --------- Turn | Location | Event 1 | -11/Scrapyard | Discovered new exit (range 0) 1 | -11/Scrapyard | Entered Materials 66 | -10/Materials | Discovered new exit (range 13) 295 | -10/Materials | Discovered new exit (range 11) 311 | -10/Materials | Build established: Mutant 360 | -10/Materials | Discovered new exit (range 10) 577 | -10/Materials | Repaired Med. Laser 605 | -10/Materials | Repaired Huge Storage Unit 673 | -10/Materials | Discovered new exit (range 4) 880 | -10/Materials | Core integrity fell below 50% 919 | -10/Materials | Lost 3 parts (1p2n) 1225 | -10/Materials | Discovered new exit (range 15) 1381 | -10/Materials | Central database locked down 1646 | -10/Materials | Discovered new exit (range 10) 2024 | -10/Materials | Entered Subcaves 2024 | -10/Subcaves | Discovered new exit (range 10) 2461 | -10/Subcaves | Shifting Twisted Machinery released Sub. Optics 2532 | -10/Subcaves | Shifting Twisted Machinery released Sub. Monowheel 2626 | -10/Subcaves | Learned location of Storage (-9) 2961 | -10/Subcaves | A swath of the cavern ceiling suddenly collapsed 3078 | -10/Subcaves | Discovered new exit (range 15) 4026 | -10/Subcaves | Shifting Twisted Machinery released Sub. Power Source 4028 | -10/Subcaves | Shifting Twisted Machinery released Mak. Light Armor Plating 4691 | -10/Subcaves | Released subatomizers from SUBCON Basin 5830 | -10/Subcaves | Discovered new exit (range 10) 5831 | -10/Subcaves | Core integrity fell below 20% 5848 | -10/Subcaves | Destroyed by Autobeam Turret with Autobeam Last Messages --------------- 05805_ S-10 Pest destroyed. 05808_ Flight Unit fries itself beyond repair. 05811_ S-10 Pest destroyed. 05815_ Flight Unit fries itself beyond repair. 05816_ Lgt. Assault Rifle fries itself beyond repair. 05821_ Acquired 33 matter. 05823_ Lgt. Ion Engine fries itself beyond repair. 05827_ Acquired 18 matter. 05828_ Lgt. Assault Rifle fries itself beyond repair. 05830_ Acquired 2 matter. 05830_ EXIT=FOUND 05833_ Machine disabled. 05834_ Acquired 2 matter. 05840_ Ion Engine destroyed. 05842_ Autobeam Turret knocked back. 05842_ Autobeam Turret destroyed. Map ----- +----------------------------------------------------+ | ????????????????????## ## ##???????## | | ????????????????????## ##### ##?????##### | | ???????????????????## ###### #??????# # # | | ???????????????????# ## # # #??????# # | | ???????????????????### ##????## ## | | ????????????????###??## #????# # ##? | | ???????????###### #?## ### ##????## #####?? | | ??????????## ## ## #?# ####?# #?????? | | ??????????# ##?# #?## #?## ##?????? | | ??????????# ###### ##?# #### ##????? | | ??????????## ## # ##??# ## ##???? | | ???????????# ##??## #### #???? | | ???????????## #???###??# #???? | | ????????????### ##????????# ### #???? | | ??????????????# #### #?????????###### ##### | | ??????????????# #??#####??????####### | | ??????????????# #######<###???## | | ??????????????## ###""" %"""???# | | ??????????????## ##"% "%" ??## ### | | ??????????????# ## % t ???# #### ## | | ??????????????# ## ??## ### & #### | | ??????????????# ### ??# #### & ##??? | | ??????????????# #?#" ??# & #?##### ##??? | | ???????#??????# #????# #### ### ##?????# ##?? | | ?????## ??#### ##???# ####??### ?????## ##? | | ????## ## #???# #@ ##????? ??????# ## | | ????# ##?????### ##???? ?????## | | ????# #????????# #???? ??????## | | ????## ######???# #????## ??????## | | ?????## ###?# ##?????? ???????# | | ??????## # ### ##??????? ?????## | | ???????# ## ##????????? ?????# | | ???????# ?## & ##?????????????????# | | ???????### ??# %& ##??????????????????## | | ?????????# ??????????????# | | ?????????# ## """#???????????# | | ?????????# ?# # "#"?????????### | | ????????? #?## ### ####? ###??????????# | | ???????? #???#####?#### #???????????######?## | | ???????###?????????????####???????????# ##?# | | ??????????????????????????????????????## ### | | ???????????????????????????????????????# ##### | | ???????????????????????????????????????# #??# | | ???????????????????????????????????????## #??# | | ????????????????????????????????????????# #?## | | ?????????????????????????????????###?#### ### | | ?????????????????????????????????# "## ## | | ?????????????????????????????????# "" | | ?????????????????????????????????##"" "" | | #?????????????????????????????????#### " & | +----------------------------------------------------+ Best States ------------- Heat Dissipation 35 Energy Generation 10 Energy Capacity 250 Matter Stores 300 Matter Capacity 300 Sight Range 16 Robot Scan Range 14 Terrain Scan Density 10 Armor Coverage 100 Evasion (%) 55 Recoil Reduction 2 Item Schematics ----------------- None Robot Schematics ------------------ None Fabricated ------------ Nothing Repaired ---------- Med. Laser | 21% | -10/Materials Huge Storage Unit | 98% | -10/Materials Studied --------- None Alien Tech Used ----------------- None Achievements -------------- None Challenges ------------ None Game ------ Seed TripodCompactArchive Manual? 0 Play Time 00:23:35 Cumulative 152.1 hours Start 2026.06.26 @ 16:04:54 End 2026.06.26 @ 16:28:26 Sessions 1 Manual Loads 0 Difficulty Rogue Special Mode None Game No. 205 Rogue 205 Adventurer 0 Explorer 0 Win Type - Total 1 Types 1/0/0/0/0/0/0/0/0/0 Lore% 49 Gallery% 53 Achievement% 30 Wizard Run 0 Options --------- Layout 1 ASCII 0 Keyboard 0 Movement Mouse Keybinds 1 Fullscreen 1 Font 24/Smallcaps Map View 50x35 Zoom Use 0% Tactical HUD 1 Map Filters NONE Filters NONE Steam 1 RUN: bacb3681-1ea6-4bbc-b07e-c80c1d46792c